fUST/lending_fUST_20251110
["ID","MTS","AMOUNT","RATE_DAILY","PERIOD"]
[393529442,1762770648059,-500.0,0.00024321,2]
[393529443,1762770648067,-500.0,0.00024321,2]
[393529444,1762770648076,-912.90314583,0.00024321,2]
[393529445,1762770648086,-643.24708872,0.00024321,2]
[393529446,1762770648097,-752.08512878,0.00024321,2]
[393529447,1762770648106,-1009.18458915,0.00024321,2]
[393529448,1762770648116,-1000.0,0.00024321,2]
[393529449,1762770648126,-1500.0,0.00024368,2]
[393529450,1762770648135,-1500.0,0.00024368,2]
[393529451,1762770648144,-502.16921861,0.00024368,2]
[393529452,1762770648153,-519.97809914,0.00024368,2]
[393529453,1762770648163,-402.01540373,0.00024372,2]
[393529454,1762770648173,-197.387997,0.00024383,10]
[393529455,1762770648182,-151.0,0.000244,6]
[393529456,1762770648191,-312.0,0.00024486,2]
[393529457,1762770648200,-151.0,0.000245,8]
[393529458,1762770648210,-1063.01408117,0.00024557,2]
[393529459,1762770648219,-24856.2,0.00024589,3]
[393529460,1762770648228,-260.0,0.00024591,2]
[393529461,1762770648237,-10075.22104449,0.000246,7]
[393529462,1762770648249,-151.0,0.000246,9]
[393529463,1762770648259,-300.0804932,0.00024603,2]
[393529464,1762770648268,-300.0086418,0.00024603,2]
[393529465,1762770648278,-599.8767927,0.00024603,2]
[393529466,1762770648288,-300.0086418,0.00024603,2]
[393529467,1762770648297,-300.0086418,0.00024603,2]
[393529468,1762770648307,-40977.24417757,0.0002465,2]
[393529469,1762770648317,-312.0,0.00024653,2]
[393529470,1762770648326,-380.0,0.00024658,2]
[393529471,1762770648335,-200.0,0.00024658,15]
[393529472,1762770648344,-246.191699,0.00024658,7]
[393529473,1762770648353,-246.191699,0.00024658,7]
[393529474,1762770648363,-246.191699,0.00024658,7]
[393529475,1762770648372,-246.191699,0.00024658,7]
[393529476,1762770648382,-246.191699,0.00024658,7]
[393529477,1762770648391,-246.191699,0.00024658,7]
[393529478,1762770648400,-246.191699,0.00024658,7]
[393529479,1762770648410,-246.191699,0.00024658,7]
[393529480,1762770648420,-246.191699,0.00024658,7]
[393529481,1762770648429,-246.191699,0.00024658,7]
[393529482,1762770648439,-246.191699,0.00024658,7]
[393529483,1762770648448,-246.191699,0.00024658,7]
[393529484,1762770648457,-246.191699,0.00024658,7]
[393529485,1762770648466,-246.191699,0.00024658,7]
[393529486,1762770648475,-246.191699,0.00024658,7]
[393529487,1762770648484,-246.191699,0.00024658,7]
[393529488,1762770648494,-246.191699,0.00024658,7]
[393529489,1762770648503,-246.191699,0.00024658,7]
[393529490,1762770648512,-246.191699,0.00024658,7]
[393529491,1762770648521,-246.1917,0.00024658,7]
[393529492,1762770648530,-525.0,0.00024658,2]
[393529493,1762770648540,-695.0,0.00024658,2]
[393529494,1762770648549,-525.0,0.00024713,2]
[393529495,1762770648559,-695.0,0.00024713,2]
[393529496,1762770648568,-600.0,0.00024742,20]
[393529497,1762770648578,-525.0,0.00024768,2]
[393529498,1762770648588,-695.0,0.00024768,2]
[393529499,1762770648597,-501.15877118,0.00024773,2]
[393529500,1762770648607,-16728.68188557,0.00024774,2]
[393529501,1762770648616,-12056.00600755,0.000248,2]
[393529502,1762770648626,-16151.903698,0.000248,2]
[393529503,1762770648635,-525.0,0.00024822,2]
[393529504,1762770648644,-695.0,0.00024822,2]
[393529505,1762770648654,-1256.30651686,0.00024822,2]
[393529506,1762770648664,-1500.0,0.00024868,2]
[393529507,1762770648673,-5644.14,0.00024873,2]
[393529508,1762770648683,-500.0,0.00024873,2]
[393529509,1762770648693,-329.74264923,0.00024873,2]
[393529510,1762770648702,-425.07135283,0.00024873,2]
[393529511,1762770648711,-500.0,0.00024873,2]
[393529512,1762770648720,-500.0,0.00024873,2]
[393529513,1762770648729,-150.0,0.00024873,2]
[393529514,1762770648739,-500.0,0.00024873,2]
[393529515,1762770648748,-500.0,0.00024873,2]
[393529516,1762770648757,-500.0,0.00024873,2]
[393529517,1762770648766,-500.0,0.00024873,2]
[393529518,1762770648775,-6567.96,0.00024876,2]
[393529519,1762770648785,-525.0,0.00024877,2]
[393529520,1762770648794,-695.0,0.00024877,2]
[393529521,1762770648803,-197.387997,0.0002489,10]
[393529522,1762770648812,-197.387997,0.000249,2]
[393529523,1762770648821,-150.0,0.000249,2]
[393529524,1762770648830,-519414.172559,0.000249,2]
[393529525,1762770648839,-170.60808093,0.00024916,2]
[393529526,1762770648848,-2000.0,0.00024916,2]
[393529527,1762770648856,-525.0,0.00024932,2]
[393529528,1762770648867,-695.0,0.00024932,2]
[393529529,1762770648877,-525.0,0.00024987,2]
[393529530,1762770648886,-695.0,0.00024987,2]
[393529531,1762770648895,-1000.0,0.00025,14]
[393529532,1762770648904,-51945.67329385,0.00025,5]
[393529533,1762770648913,-206.589211,0.00025,2]
[393529534,1762770648923,-525.0,0.00025042,2]
[393529535,1762770648932,-695.0,0.00025042,2]
[393529536,1762770648941,-312.0,0.0002505,2]
[393529537,1762770648951,-525.0,0.00025096,2]
[393529538,1762770648959,-695.0,0.00025096,2]
[393529539,1762770648968,-442.3,0.000251,7]
[393529540,1762770648977,-312.0,0.000251,2]
[393529541,1762770648986,-360.0,0.00025139,2]
[393529542,1762770648995,-525.0,0.00025151,2]
[393529543,1762770649004,-695.0,0.00025151,2]
[393529544,1762770649015,-500.0,0.00025173,2]
[393529545,1762770649028,-272.58925646,0.00025173,2]
[393529546,1762770649037,-312.0,0.00025197,2]
[393529547,1762770649046,-575.46915079,0.000252,5]
[393529548,1762770649055,-525.0,0.00025206,2]
[393529549,1762770649065,-695.0,0.00025206,2]
[393529550,1762770649073,-525.0,0.00025261,2]
[393529551,1762770649082,-695.0,0.00025261,2]
[393529552,1762770649091,-1915.26366338,0.00025278,2]
[393529553,1762770649101,-525.0,0.00025316,2]
[393529554,1762770649109,-695.0,0.00025316,2]
[393529555,1762770649119,-1760.42073085,0.00025351,2]
[393529556,1762770649127,-363.13,0.00025351,2]
[393529557,1762770649137,-525.0,0.0002537,2]
[393529558,1762770649146,-695.0,0.0002537,2]
[393529559,1762770649156,-1915.26366338,0.00025392,2]
[393529560,1762770649166,-547.13375357,0.00025416,2]
[393529561,1762770649175,-1126.70170652,0.00025421,2]
[393529562,1762770649250,-1000.0,0.00025421,2]
[393529563,1762770649267,-300.0,0.00025421,2]
[393529564,1762770649277,-1000.0,0.00025421,2]
[393529565,1762770649286,-525.0,0.00025425,2]
[393529566,1762770649295,-695.0,0.00025425,2]
[393529567,1762770649304,-2500.0,0.00025464,2]
[393529568,1762770649313,-900.0,0.00025469,3]
[393529569,1762770649322,-525.0,0.0002548,2]
[393529570,1762770649331,-695.0,0.0002548,2]
[393529571,1762770649340,-429.48447172,0.00025498,2]
[393529572,1762770649349,-1915.26366338,0.00025506,2]
[393529573,1762770649358,-525.0,0.00025535,2]
[393529574,1762770649368,-695.0,0.00025535,2]
[393529575,1762770649377,-525.0,0.0002559,2]
[393529576,1762770649386,-695.0,0.0002559,2]
[393529577,1762770649395,-1915.26366338,0.0002562,2]
[393529578,1762770649404,-525.0,0.00025644,2]
[393529579,1762770649413,-695.0,0.00025644,2]
[393529580,1762770649424,-460.0,0.00025687,2]
[393529581,1762770649433,-525.0,0.00025699,2]
[393529582,1762770649442,-695.0,0.00025699,2]
[393529583,1762770649451,-150.0,0.000257,2]
[393529584,1762770649460,-713.28,0.000257,14]
[393529585,1762770649470,-500.0,0.00025721,2]
[393529586,1762770649481,-1915.26366338,0.00025734,2]
[393529587,1762770649491,-525.0,0.00025754,2]
[393529588,1762770649500,-695.0,0.00025754,2]
[393529589,1762770649509,-525.0,0.00025809,2]
[393529590,1762770649518,-695.0,0.00025809,2]
[393529591,1762770649528,-1915.26366338,0.00025848,2]
[393529592,1762770649538,-525.0,0.00025863,2]
[393529593,1762770649548,-695.0,0.00025863,2]
[393529594,1762770649558,-429.48447172,0.00025871,2]
[393529595,1762770649569,-15079.62,0.000259,7]
[393529596,1762770649578,-529.2251724,0.00025918,2]
[393529597,1762770649587,-710.24164252,0.00025918,2]
[393529598,1762770649596,-1915.26366338,0.00025962,2]
[393529599,1762770649605,-1500.0,0.00025968,2]
[393529600,1762770649614,-450.0,0.00025968,2]
[393529601,1762770649623,-508.27688141,0.00025968,2]
[393529602,1762770649633,-161.0,0.00026,5]
[393529603,1762770649642,-3000.0,0.00026012,2]
[393529604,1762770649651,-566.743,0.00026074,2]
[393529605,1762770649660,-172.958,0.00026074,2]
[393529606,1762770649669,-413.0,0.00026074,2]
[393529607,1762770649678,-1915.26366338,0.00026076,2]
[393529608,1762770649687,-1915.26366338,0.0002619,2]
[393529609,1762770649696,-168.70131174,0.0002622,2]
[393529610,1762770649705,-560.0,0.00026235,2]
[393529611,1762770649714,-429.48447172,0.00026244,2]
[393529612,1762770649723,-250.0,0.00026248,2]
[393529613,1762770649732,-281.72605353,0.00026267,2]
[393529614,1762770649742,-4448.100108,0.00026286,2]
[393529615,1762770649751,-1917.17892705,0.00026303,2]
[393529616,1762770649760,-442.3,0.000264,7]
[393529617,1762770649769,-2000.0,0.00026516,2]
[393529618,1762770649779,-600.0,0.00026516,2]
[393529619,1762770649787,-200.0,0.0002654,14]
[393529620,1762770649796,-726.27,0.00026559,2]
[393529621,1762770649806,-3500.0,0.0002656,2]
[393529622,1762770649815,-429.48447172,0.00026617,2]
[393529623,1762770649825,-435.066767,0.00026676,2]
[393529624,1762770649834,-660.0,0.00026783,2]
[393529625,1762770649843,-350.0,0.00026796,2]
[393529626,1762770649852,-992.5052894,0.00026946,2]
[393529627,1762770649861,-429.91395619,0.0002699,2]
[393529628,1762770649871,-2500.0,0.00027064,2]
[393529629,1762770649881,-308.67272149,0.00027064,2]
[393529630,1762770649890,-754.31261101,0.000271,2]
[393529631,1762770649899,-515.83729706,0.000271,2]
[393529632,1762770649908,-713.28,0.000271,14]
[393529633,1762770649917,-1024.23465077,0.00027108,2]
[393529634,1762770649927,-160.0,0.00027108,3]
[393529635,1762770649936,-754.31261101,0.00027179,5]
[393529636,1762770649945,-515.83729706,0.00027179,5]
[393529637,1762770649954,-720.0,0.00027216,30]
[393529638,1762770649963,-524.90312364,0.00027257,9]
[393529639,1762770694248,150.0,0.000137,2]
[393529640,1762770701678,188.74226007,0.000328,120]
[393529641,1762770704771,150.0,0.000137,2]
[393529642,1762770714898,150.0,0.000137,2]
[393529643,1762770725763,150.0,0.000137,2]
[393529644,1762770736201,150.0,0.000137,2]
[393529645,1762770746391,150.0,0.000137,2]
[393529646,1762770757206,150.0,0.000137,2]
[393529647,1762770768073,150.0,0.000137,2]
[393529648,1762770779142,150.0,0.000137,2]
[393529649,1762770785094,218.58764522,0.000328,120]
[393529650,1762770800189,162.83550435,0.000328,120]
[393529651,1762770800744,150.0,0.000137,2]
[393529652,1762770801265,150.0,0.000137,2]
[393529653,1762770811736,150.0,0.000137,2]
[393529654,1762770812027,150.0,0.000137,2]
[393529655,1762770822158,150.0,0.000137,2]
[393529656,1762770823720,150.0,0.000137,2]
[393529657,1762770832373,150.0,0.000137,2]
[393529658,1762770834437,150.0,0.000137,2]
[393529659,1762770842954,150.0,0.000137,2]
[393529660,1762770845474,150.0,0.000137,2]
[393529661,1762770851943,150.0,0.000137,2]
[393529662,1762770859205,150.0,0.000137,2]
[393529663,1762770863814,150.0,0.000137,2]
[393529664,1762770866185,150.0,0.000137,2]
[393529665,1762770867284,190.7640552,0.00032876,120]
[393529666,1762770875703,150.0,0.000137,2]
[393529667,1762770876733,150.0,0.000137,2]
[393529668,1762770907370,188.44193806,0.000328,120]
[393529669,1762770908027,201.55332535,0.000328,120]
[393529670,1762770920419,162.06859215,0.000328,120]
[393529671,1762770923508,168.54869355,0.000328,120]
[393529672,1762770924098,184.31097707,0.000328,120]
[393529673,1762771101392,174.87011618,0.000328,120]
[393529674,1762771114419,162.83550434,0.000328,120]
[393529707,1762771418838,174.87011618,0.000328,120]
[393529708,1762771428099,162.83550435,0.000328,120]
[393529713,1762771733375,174.87011618,0.000328,120]
[393529722,1762771832405,-262.31,0.00018,2]
[393529723,1762771832415,-150.0,0.00018,2]
[393529724,1762771832425,-604.39874072,0.00018,2]
[393529725,1762771832461,-267.60125928,0.00018,2]
[393529726,1762771832470,-231.59889682,0.00018261,2]
[393529727,1762771832481,-273.28669825,0.00020261,2]
[393529728,1762771832490,-251.892667,0.00021501,2]
[393529729,1762771832499,-300.0804932,0.00021878,2]
[393529730,1762771832509,-180.233809,0.00022,7]
[393529731,1762771832519,-314.97449968,0.00022261,2]
[393529732,1762771832528,-300.0,0.00022404,2]
[393529733,1762771832537,-1200.0,0.00022404,2]
[393529734,1762771832546,-9191.51292797,0.00022405,2]
[393530276,1762771838282,-500.0,0.00022404,2]
[393530277,1762771838292,-321.55524731,0.00022404,2]
[393530278,1762771838336,-178.44475269,0.00022404,2]
[393530279,1762771838348,-464.64867879,0.00022404,2]
[393530280,1762771838361,-35.35132121,0.00022404,2]
[393530281,1762771838370,-334.35650968,0.00022404,2]
[393530282,1762771838382,-165.64349032,0.00022404,2]
[393530283,1762771838391,-194.92150562,0.00022404,2]
[393530284,1762771838402,-500.0,0.00022404,2]
[393530285,1762771838413,-649.17495185,0.00022404,2]
[393530286,1762771838423,-500.0,0.00022404,2]
[393530287,1762771838432,-220.51017212,0.00022404,2]
[393530288,1762771838444,-274.95462258,0.00022404,2]
[393530289,1762771838454,-7.87713737,0.00022404,2]
[393530306,1762771840496,-492.12286263,0.00022404,2]
[393530307,1762771840507,-500.0,0.00022404,2]
[393530308,1762771840520,-334.86809868,0.00022404,2]
[393530309,1762771840532,-500.0,0.00022404,2]
[393530310,1762771840544,-500.0,0.00022404,2]
[393530312,1762771840556,-500.0,0.00022404,2]
[393530313,1762771840568,-500.0,0.00022404,2]
[393530314,1762771840580,-500.0,0.00022404,2]
[393530315,1762771840591,-500.0,0.00022404,2]
[393530316,1762771840604,-500.0,0.00022404,2]
[393530317,1762771840617,-500.0,0.00022404,2]
[393530318,1762771840629,-500.0,0.00022404,2]
[393530319,1762771840640,-500.0,0.00022404,2]
[393530320,1762771840652,-500.0,0.00022404,2]
[393530321,1762771840663,-500.0,0.00022404,2]
[393530322,1762771840675,-500.0,0.00022404,2]
[393530323,1762771840686,-500.0,0.00022404,2]
[393530325,1762771840699,-500.0,0.00022404,2]
[393530328,1762771840711,-500.0,0.00022404,2]
[393530330,1762771840723,-500.0,0.00022404,2]
[393530332,1762771840735,-500.0,0.00022404,2]
[393530334,1762771840745,-500.0,0.00022404,2]
[393530336,1762771840755,-500.0,0.00022404,2]
[393530338,1762771840766,-500.0,0.00022404,2]
[393530341,1762771840778,-500.0,0.00022404,2]
[393530343,1762771840788,-577.37213069,0.00022404,2]
[393530345,1762771840802,-500.0,0.00022404,2]
[393530347,1762771840814,-500.0,0.00022404,2]
[393530350,1762771840826,-500.0,0.00022404,2]
[393530352,1762771840838,-500.0,0.00022404,2]
[393530354,1762771840850,-500.0,0.00022404,2]
[393530357,1762771840862,-500.0,0.00022404,2]
[393530359,1762771840874,-500.0,0.00022404,2]
[393530362,1762771840886,-500.0,0.00022404,2]
[393530365,1762771840912,-500.0,0.00022404,2]
[393530368,1762771840928,-3017.84596076,0.00022405,2]
[393530370,1762771840942,-28953.79046262,0.00022405,2]
[393531014,1762772047874,174.87011618,0.000328,120]
[393531017,1762772362003,174.87011618,0.000328,120]
[393531018,1762772661779,50551.0,0.00019,3]
[393531043,1762773032510,-218.40586648,0.00018995,2]
[393531045,1762773032520,-300.0,0.00020382,2]
[393531047,1762773032530,-290.0,0.00020382,2]
[393531049,1762773032539,-191.59413352,0.00020383,2]
[393531050,1762773032550,-503.47225909,0.00020383,2]
[393531051,1762773032564,-21970.75148438,0.00020383,2]
[393531052,1762773032574,-257.71892245,0.00020995,2]
[393531053,1762773032583,-245.11798,0.00022,7]
[393531054,1762773032593,-420.0,0.00022185,2]
[393531055,1762773032603,-2465.3121267,0.000224,2]
[393531056,1762773032612,-172.04344293,0.00022426,2]
[393531057,1762773032622,-172.04344293,0.0002245,2]
[393531058,1762773032631,-2112.37310476,0.00022456,2]
[393531084,1762773038482,-245.3863972,0.00022456,2]
[393531086,1762773038493,-172.04344293,0.00022473,2]
[393531088,1762773038503,-1869.61061384,0.00022473,2]
[393531090,1762773038513,-500.0,0.000225,2]
[393531091,1762773038522,-233.31,0.000225,2]
[393531094,1762773038532,-233.31,0.000225,2]
[393531095,1762773038541,-233.31,0.000225,2]
[393531097,1762773038551,-233.31,0.000225,2]
[393531099,1762773038561,-233.31,0.000225,2]
[393531101,1762773038570,-233.31,0.000225,2]
[393531103,1762773038580,-233.31,0.000225,2]
[393531105,1762773038590,-233.31,0.000225,2]
[393531106,1762773038599,-233.31,0.000225,2]
[393531107,1762773038608,-233.31,0.000225,2]
[393531108,1762773038625,-233.31,0.000225,2]
[393531109,1762773038635,-233.31,0.000225,2]
[393531110,1762773038644,-233.31,0.000225,2]
[393531111,1762773038654,-233.31,0.000225,2]
[393531112,1762773038663,-233.31,0.000225,2]
[393531113,1762773038673,-233.31,0.000225,2]
[393531114,1762773038682,-233.31,0.000225,2]
[393531115,1762773038692,-233.31,0.000225,2]
[393531116,1762773038701,-233.31,0.000225,2]
[393531117,1762773038711,-233.31,0.000225,2]
[393531118,1762773038721,-233.31,0.000225,2]
[393531119,1762773038731,-233.31,0.000225,2]
[393531120,1762773038740,-233.31,0.000225,2]
[393531121,1762773038750,-233.31,0.000225,2]
[393531122,1762773038760,-233.31,0.000225,2]
[393531123,1762773038770,-233.31,0.000225,2]
[393531124,1762773038779,-233.31,0.000225,2]
[393531125,1762773038788,-233.31,0.000225,2]
[393531126,1762773038798,-233.31,0.000225,2]
[393531127,1762773038808,-233.31,0.000225,2]
[393531128,1762773038821,-233.31,0.000225,2]
[393531129,1762773038831,-233.31,0.000225,2]
[393531130,1762773038842,-233.31,0.000225,2]
[393531131,1762773038854,-233.31,0.000225,2]
[393531132,1762773038865,-233.31,0.000225,2]
[393531133,1762773038875,-233.31,0.000225,2]
[393531134,1762773038885,-233.31,0.000225,2]
[393531135,1762773038896,-233.31,0.000225,2]
[393531136,1762773038906,-233.31,0.000225,2]
[393531137,1762773038916,-233.31,0.000225,2]
[393531138,1762773038926,-233.31,0.000225,2]
[393531139,1762773038937,-233.31,0.000225,2]
[393531140,1762773038946,-233.31,0.000225,2]
[393531141,1762773038957,-233.31,0.000225,2]
[393531142,1762773038967,-233.31,0.000225,2]
[393531143,1762773038976,-233.31,0.000225,2]
[393531144,1762773038986,-233.31,0.000225,2]
[393531145,1762773038998,-233.31,0.000225,2]
[393531146,1762773039008,-233.31,0.000225,2]
[393531147,1762773039019,-233.31,0.000225,2]
[393531148,1762773039029,-500.0,0.00022503,2]
[393531149,1762773039039,-610.11274025,0.00022503,2]
[393531150,1762773039049,-203.87423319,0.00022503,2]
[393531151,1762773039059,-257.73721307,0.00022503,2]
[393531152,1762773039080,-500.0,0.00022503,2]
[393531153,1762773039092,-500.0,0.00022503,2]
[393531154,1762773039103,-500.0,0.00022503,2]
[393531155,1762773039114,-500.0,0.00022503,2]
[393531156,1762773039124,-500.0,0.00022503,2]
[393531157,1762773039135,-388.6842988,0.00022504,2]
[393531158,1762773039146,-202.65715922,0.00022524,2]
[393531159,1762773039157,-6889.67,0.00022526,3]
[393531160,1762773039167,-3444.83,0.00022526,3]
[393531161,1762773039177,-1722.42,0.00022526,3]
[393531162,1762773039187,-861.21,0.00022526,3]
[393531163,1762773039198,-430.6,0.00022526,3]
[393531164,1762773039210,-215.3,0.00022526,3]
[393531165,1762773039221,-645.94,0.00022526,3]
[393531166,1762773039232,-1099.76,0.00022526,10]
[393531167,1762773039245,-2097.18,0.00022526,10]
[393531168,1762773039256,-1747.65,0.00022526,10]
[393531169,1762773039266,-1005.93129991,0.00022533,2]
[393531170,1762773039275,-517.82512792,0.00022535,2]
[393531171,1762773039283,-1000.0,0.00022535,2]
[393531172,1762773039292,-1000.0,0.00022535,2]
[393531173,1762773039302,-963.12277454,0.00022535,2]
[393531174,1762773039312,-372110.58851018,0.00022536,2]
[393531175,1762773039331,-112257.2436856,0.00022536,2]
[393531215,1762773620737,1000.0,0.00032,120]
[393531264,1762773980446,462.022025,0.00013699,2]
[393531306,1762774108347,20519.88837795,0.00032,120]
[393531346,1762774231798,-302.9394212,0.000189,2]
[393531347,1762774231808,-551.02782629,0.000189,2]
[393531348,1762774231819,-365.97217371,0.000189,2]
[393531349,1762774231829,-219.39620577,0.00018995,2]
[393531350,1762774231838,-302.9394212,0.00019089,2]
[393531351,1762774231847,-100.24427246,0.00019278,2]
[393531352,1762774231869,-152.95247468,0.00019278,2]
[393531372,1762774239804,-49.74267406,0.00019278,2]
[393531373,1762774239814,-302.9394212,0.00019467,2]
[393531374,1762774239824,-302.9394212,0.00019656,2]
[393531375,1762774239833,-454.40913181,0.00019845,4]
[393531376,1762774239842,-454.40913181,0.00020034,4]
[393531377,1762774239852,-462.022025,0.00020187,2]
[393531378,1762774239862,-454.40913181,0.00020223,4]
[393531379,1762774239871,-435.53195261,0.00020273,2]
[393531380,1762774239883,-64.46804739,0.00020273,2]
[393531381,1762774239892,-500.0,0.00020273,2]
[393531382,1762774239902,-101.87533653,0.00020283,2]
[393531383,1762774239918,-198.12466347,0.00020283,2]
[393531384,1762774239928,-500.0,0.00020283,2]
[393531385,1762774239938,-361.97080145,0.00020283,2]
[393531386,1762774239948,-268.39567422,0.00020283,2]
[393531402,1762774244733,-102.54455383,0.00020283,2]
[393531403,1762774244742,-174.36861348,0.00020284,2]
[393531404,1762774244754,-49079.06939231,0.00020284,2]
[393531405,1762774244763,-454.40913181,0.00020412,4]
[393531406,1762774244772,-402.42927893,0.00020601,4]
[393531407,1762774244781,-1000.0,0.00020821,2]
[393531408,1762774244790,-1000.0,0.00020821,2]
[393531409,1762774244799,-258.8875228,0.00020995,2]
[393531410,1762774244809,-4488.84404236,0.00021,5]
[393531411,1762774244819,-500.0,0.00021368,2]
[393531412,1762774244829,-901.54267218,0.00022,4]
[393531413,1762774244838,-420.0,0.0002208,2]
[393531414,1762774244848,-160.0,0.00022452,2]
[393531415,1762774244857,-160.0,0.00022452,2]
[393531416,1762774244867,-11476.53415596,0.0002247,10]
[393531417,1762774244876,-399.99776637,0.0002247,10]
[393531418,1762774244886,-399.99776637,0.00022472,2]
[393531419,1762774244895,-160.0,0.00022472,2]
[393531420,1762774244905,-500.0,0.00022473,2]
[393531421,1762774244914,-503.12613602,0.00022473,2]
[393531422,1762774244924,-500.0,0.00022473,2]
[393531423,1762774244933,-509.04784384,0.00022473,2]
[393531424,1762774244942,-222.00075868,0.00022473,2]
[393531425,1762774244951,-500.0,0.00022473,2]
[393531426,1762774244960,-583.84105205,0.00022473,2]
[393531427,1762774244970,-1246.40707588,0.00022473,2]
[393531428,1762774244979,-196.094384,0.00022526,10]
[393531429,1762774244988,-4521.34,0.00022538,3]
[393531430,1762774244997,-2260.67,0.00022538,3]
[393531431,1762774245006,-1130.33,0.00022538,3]
[393531432,1762774245016,-565.17,0.00022538,3]
[393531433,1762774245025,-282.58,0.00022538,3]
[393531434,1762774245034,-847.79,0.00022538,3]
[393531435,1762774245043,-1456.37,0.00022538,10]
[393531436,1762774245053,-1213.64,0.00022538,10]
[393531437,1762774245065,-1011.37,0.00022538,10]
[393531438,1762774245075,-500.0,0.00022538,3]
[393531439,1762774245084,-362.47758955,0.00022547,2]
[393531440,1762774245095,-777000.0,0.00022548,2]
[393531441,1762774245104,-500.0,0.00022573,2]
[393531442,1762774245113,-435.05382688,0.00022573,2]
[393531443,1762774245123,-500.0,0.00022573,2]
[393531444,1762774245132,-500.0,0.00022573,2]
[393531445,1762774245142,-500.0,0.00022573,2]
[393531446,1762774245151,-500.0,0.00022573,2]
[393531447,1762774245161,-500.0,0.00022573,2]
[393531448,1762774245171,-500.0,0.00022573,2]
[393531449,1762774245181,-196.094384,0.00022605,3]
[393531450,1762774245191,-519.24,0.00022636,2]
[393531451,1762774245206,-519.24,0.00022636,2]
[393531452,1762774245216,-519.24,0.00022636,2]
[393531453,1762774245226,-519.24,0.00022636,2]
[393531454,1762774245236,-519.24,0.00022636,2]
[393531455,1762774245247,-519.24,0.00022636,2]
[393531456,1762774245256,-519.24,0.00022636,2]
[393531457,1762774245266,-519.24,0.00022636,2]
[393531458,1762774245277,-519.24,0.00022636,2]
[393531459,1762774245286,-519.24,0.00022636,2]
[393531460,1762774245295,-519.24,0.00022636,2]
[393531461,1762774245305,-519.24,0.00022636,2]
[393531462,1762774245317,-519.24,0.00022636,2]
[393531463,1762774245326,-519.24,0.00022636,2]
[393531464,1762774245336,-519.24,0.00022636,2]
[393531465,1762774245346,-519.24,0.00022636,2]
[393531466,1762774245355,-519.24,0.00022636,2]
[393531467,1762774245365,-519.24,0.00022636,2]
[393531468,1762774245374,-519.24,0.00022636,2]
[393531469,1762774245383,-519.24,0.00022636,2]
[393531470,1762774245393,-519.24,0.00022636,2]
[393531471,1762774245403,-519.24,0.00022636,2]
[393531472,1762774245412,-519.24,0.00022636,2]
[393531473,1762774245421,-519.44507139,0.00022636,2]
[393531474,1762774245431,-534.01,0.000227,14]
[393531475,1762774245440,-407.15,0.000227,7]
[393531476,1762774245449,-150.0,0.000227,2]
[393531477,1762774245458,-1260.08719455,0.00022733,2]
[393531478,1762774245468,-500.0,0.00022733,2]